[Event "Croatian 1B League 2022"]
[Site "Porec"]
[Date "2022.10.02"]
[Round "9.2"]
[White "Skuhala, Jernej"]
[Black "Medvegy, Zoltan"]
[Result "0-1"]
[ECO "B12"]
[WhiteElo "2349"]
[BlackElo "2526"]
[Annotator "TA"]
[PlyCount "74"]
[EventDate "2022.09.24"]
[EventType "team-tourn"]
[EventCountry "CRO"]
[SourceTitle "playchess.com"]
[Source "ChessBase"]
[SourceQuality "1"]
[TimeControl "40/5400+30:1800+30"]

{[%evp 12,74,30,30,26,19,34,20,14,18,0,-21,2,0,0,17,0,0,0,0,1,0,0,0,0,0,0,0,0,0,0,-15,0,-62,-41,-100,-101,-153,-127,-139,-133,-150,-148,-153,-176,-188,-186,-171,-147,-147,-144,-278,-278,-578,-580,-566,-562,-489,-467,-567,-539,-514,-430,-508,-318]} 1. e4 {[%emt 0:00:04]} c6 {[%emt 0:00:04]} 2. d4 {[%emt 0:02:59]} d5 {[%emt 0:00:11]} 3. e5 {[%emt 0:01:25]} Bf5 {[%emt 0:00:11]} 4. Nf3 {[%emt 0:00:06][%cal Bg1f3,Bf3e1,Be1d3,Bd3c5][%mdl 32]} e6 {[%emt 0:00:11]} 5. Be2 {[%emt 0:00:09]} Nd7 {[%emt 0:00:33]} 6. O-O {[%emt 0:01:08]} h6 {[%emt 0:00:18]} 7. Nbd2 {[%emt 0:01:11]} Ne7 {[%emt 0:00:15][%cal Bg8e7,Be7f5,Bf5d4,Bd4e2][%mdl 32] B12: Caro-Kann: Advance Variation.} 8. Nb3 {[%emt 0:00:24]} g5 {[%emt 0:00:18]} 9. Ne1 {[%emt 0:00:50] 9.Bd2 is the recent fashion.} Qc7 {[%emt 0:07:00] The position is equal.} 10. Be3 {[%emt 0:09:54]} O-O-O {[%emt 0:10:51]} 11. Rc1 {[%emt 0:06:29] [#]} Bg6 $146 {[%emt 0:14:39]} ({Predecessor:} 11... Bg7 12. Nd3 Kb8 13. Ndc5 Ka8 14. Nxd7 Qxd7 15. c4 dxc4 16. Rxc4 Qc7 17. Qc1 Be4 {½-½ (47) Hevia Alejano,C (2533)-Santarius,E (2302) Chicago 2016}) 12. Nd3 {[%emt 0:06:59]} Nf5 {[%emt 0:09:42]} 13. Bd2 {[%emt 0:13:08]} f6 {[%emt 0:03:31][%cal Rf6e5]} 14. f4 {[%emt 0:07:36]} fxe5 {[%emt 0:08:11]} 15. fxe5 {[%emt 0:00:43]} Nb6 {[%emt 0:04:09]} 16. Ndc5 {[%emt 0:04:47]} Nxd4 {[%emt 0:04:26]} 17. Rxf8 {[%emt 0:13:05]} Nxe2+ {[%emt 0:01:57]} 18. Qxe2 {[%emt 0:00:54]} Rdxf8 {[%emt 0:00:44]} 19. Nxe6 {[%emt 0:00:12] Pair of Knights!} Qe7 {[%emt 0:00:32]} 20. Nxf8 {[%emt 0:00:21]} Rxf8 {[%emt 0:00:08]} 21. a3 {[%emt 0:04:16] [#] Strongly threatening Bb4.} Re8 {[%emt 0:01:08]} 22. Bc3 {[%emt 0:03:37]} (22. Re1 $11) 22... Nc4 {[%emt 0:08:34][%cal Rc4e5]} 23. Qf2 {[%emt 0:03:48]} ({White should try} 23. Re1 $15) 23... b6 $17 {[%emt 0:02:49]} 24. Nd2 {[%emt 0:08:01]} (24. Re1 $142) 24... Nxe5 {[%emt 0:05:35] Black has more active pieces.} 25. Re1 {[%emt 0:06:51]} Qd6 {[%emt 0:00:29] ...Ng4 is the strong threat.} 26. Bxe5 {[%emt 0:00:24]} Rxe5 {[%emt 0:00:07]} 27. Rxe5 {[%emt 0:00:02]} Qxe5 {[%emt 0:00:05][%mdl 4096] Endgame KQB-KQN} 28. c3 {[%emt 0:00:03]} Kb7 {[%emt 0:05:05]} 29. h3 {[%emt 0:00:38]} Bd3 {[%emt 0:03:19]} 30. Nf3 {[%emt 0:02:22]} Qf4 {[%emt 0:03:39]} 31. h4 {[%emt 0:02:10] [#]} (31. Qe1 $17 {was worth a try.}) 31... gxh4 $1 $19 {[%emt 0:01:35]} 32. Nxh4 $2 {[%emt 0:00:11]} (32. Nd2 Qg4 33. Kh2) 32... Qxf2+ {[%emt 0:00:40] Black is clearly winning.} 33. Kxf2 {[%emt 0:00:01] KB-KN} Be4 {[%emt 0:01:25]} 34. Ke3 {[%emt 0:00:30]} Kc7 {[%emt 0:00:21] Threatens to win with ...Kd6.} 35. Kf4 {[%emt 0:01:13]} Kd6 {[%emt 0:00:19]} 36. g3 {[%emt 0:01:15]} Ke6 {[%emt 0:00:38]} 37. a4 {[%emt 0:00:15]} a5 {[%emt 0:01:17] Weighted Error Value: White=0.38/Black=0.03 (flawless)} 0-1

[Event "Croatian 1B League 2022"]
[Site "Porec"]
[Date "2022.10.02"]
[Round "9.3"]
[White "Rezan, Sasa"]
[Black "Segovic, Goran"]
[Result "1-0"]
[ECO "E05"]
[WhiteElo "2388"]
[BlackElo "2304"]
[Annotator "TA"]
[PlyCount "61"]
[EventDate "2022.09.24"]
[EventType "team-tourn"]
[EventCountry "CRO"]
[SourceTitle "playchess.com"]
[Source "ChessBase"]
[SourceQuality "1"]
[TimeControl "40/5400+30:1800+30"]

{[%evp 19,61,0,0,0,35,17,35,33,34,-22,0,-106,-99,-89,-69,-71,-61,-220,-212,-212,-233,-240,-212,-255,-211,-264,-209,-277,-55,-46,563,-148,541,574,536,514,2084,1983,1432,1255,1401,498,29990,29991]} 1. Nf3 {[%emt 0:00:07]} Nf6 {[%emt 0:00:12]} 2. c4 {[%emt 0:00:29]} e6 {[%emt 0:00:24]} 3. g3 {[%emt 0:00:14]} d5 {[%emt 0:00:38]} 4. Bg2 {[%emt 0:02:01]} Be7 {[%emt 0:00:38]} 5. d4 {[%emt 0:00:50]} O-O {[%emt 0:00:50]} 6. O-O {[%emt 0:00:05]} dxc4 {[%emt 0:01:54]} 7. Ne5 {[%emt 0:00:27]} Nc6 {[%emt 0:03:34]} 8. Nxc6 {[%emt 0:01:30]} bxc6 {[%emt 0:00:06]} 9. Na3 {[%emt 0:00:06]} Bxa3 {[%emt 0:05:49]} 10. bxa3 {[%emt 0:00:12]} Ba6 {[%emt 0:02:48]} 11. a4 {[%emt 0:04:40] E05: Open Catalan: 5 Nf3 Be7.} Qe7 {[%emt 0:12:27]} (11... Qd6 $5 {[%cal Rc4c3]}) 12. Qd2 {[%emt 0:04:54][%mdl 1024] White has compensation.} Rab8 {[%emt 0:06:26]} 13. Qa5 {[%emt 0:08:08] White is slightly better.} Rb6 {[%emt 0:03:06]} 14. e4 {[%emt 0:09:51] [#] Against Nd5} ({Better is} 14. Qc3 $14) 14... Rd8 $146 {[%emt 0:06:14]} ({Predecessor:} 14... Rfb8 15. a3 c3 16. Re1 c2 17. Ra2 Bd3 18. Qd2 Bc4 19. Rxc2 Bb3 20. a5 R6b7 21. Rxc6 {1-0 (31) Stupak,K (2560)-Sattarov,B (2324) Tashkent 2017}) 15. Be3 {[%emt 0:14:23]} (15. a3 $1 $11) 15... Qb4 $17 {[%emt 0:11:15]} 16. Qe5 {[%emt 0:01:25]} Rd7 {[%emt 0:02:40]} 17. h3 {[%emt 0:09:26] Inhibits Ng4.} Qxa4 {[%emt 0:03:42]} 18. d5 $2 {[%emt 0:05:49]} (18. Rfc1 $15) 18... cxd5 $19 {[%emt 0:11:12]} 19. Bxb6 {[%emt 0:04:44]} axb6 {[%emt 0:00:24]} 20. exd5 {[%emt 0:00:30]} exd5 {[%emt 0:01:11]} 21. g4 {[%emt 0:05:51] [#] And now g5 would win.} h6 {[%emt 0:02:58]} 22. f4 {[%emt 0:07:28][%cal Bf2f4,Bf4g5,Bg5g6][%mdl 32]} Qc6 {[%emt 0:01:47] Hoping for ...Qc5+.} 23. g5 {[%emt 0:07:07]} hxg5 {[%emt 0:06:01]} (23... Qc5+ $19 24. Kh2 Re7) 24. fxg5 $15 {[%emt 0:00:21]} Nh7 {[%emt 0:04:44][%mdl 8192]} (24... Qc5+ $15 25. Kh2 Re7) 25. Qe8+ $18 {[%emt 0:02:14]} Nf8 {[%emt 0:00:19] [#] Threatens to win with ...Qc5+.} 26. Rxf7 $3 {[%emt 0:00:49][%mdl 576] Pin} Qc5+ {[%emt 0:01:16]} 27. Rf2 {[%emt 0:00:02] g6 would kill now.} c3 {[%emt 0:01:15]} (27... Kh7 $142 28. Qxf8 Qxf8 29. Rxf8 c6) 28. g6 {[%emt 0:04:16][%cal Og2d5] White threatens Bxd5+! and mate.} c6 {[%emt 0:03:47]} 29. Bf1 {[%emt 0:02:13]} c2 {[%emt 0:04:06]} 30. Kg2 {[%emt 0:00:21]} (30. Rc1 $142 Ra7 31. Rcxc2) 30... d4 {[%emt 0:03:16]} (30... Qe7 $18 31. Qxe7 Rxe7 32. Bxa6 Re6 33. Rxc2 Rxg6+ 34. Kh1 c5) 31. Bxa6 {[%emt 0:02:44] Quite a comeback for White.  Weighted Error Value: White=0.51/Black=0.83} 1-0

[Event "Croatian 1B League 2022"]
[Site "Porec"]
[Date "2022.10.02"]
[Round "9.4"]
[White "Makovec, Bruno"]
[Black "Plenkovic, Zdenko"]
[Result "1-0"]
[ECO "E94"]
[WhiteElo "2258"]
[BlackElo "2367"]
[Annotator "TA"]
[PlyCount "105"]
[EventDate "2022.09.24"]
[EventType "team-tourn"]
[EventCountry "CRO"]
[SourceTitle "playchess.com"]
[Source "ChessBase"]
[SourceQuality "1"]
[TimeControl "40/5400+30:1800+30"]

{[%evp 16,105,83,24,81,77,76,56,58,59,79,72,73,55,63,47,54,41,77,53,82,65,69,54,56,39,70,63,68,7,41,29,45,-17,-19,-25,-12,-41,-46,-50,-30,-86,-44,-72,-63,-62,0,0,0,-65,-64,-62,-56,-56,131,118,125,119,338,331,331,310,362,348,332,329,358,291,845,856,848,831,1071,798,846,766,1038,1015,866,878,1551,777,1563,1192,1495,1571,1601,1591,927,703,5057,5057]} 1. d4 {[%emt 0:00:03]} Nf6 {[%emt 0:01:10]} 2. c4 {[%emt 0:00:07]} g6 {[%emt 0:00:04]} 3. Nc3 {[%emt 0:00:06]} Bg7 {[%emt 0:00:02]} 4. e4 {[%emt 0:00:06]} d6 {[%emt 0:00:04]} 5. Nf3 {[%emt 0:00:04]} O-O {[%emt 0:00:08]} 6. Be2 {[%emt 0:00:17]} e5 {[%emt 0:00:13]} 7. Be3 {[%emt 0:00:38]} Nbd7 {[%emt 0:04:50]} 8. O-O {[%emt 0:01:28]} h6 {[%emt 0:02:10]} 9. h3 {[%emt 0:14:07]} ({Better is} 9. dxe5 $16 Nxe5 10. Nxe5 dxe5 11. Qc1) 9... b6 {[%emt 0:08:36] E94: King's Indian: Classical: 6 Be2 e5 7 0-0: Various Black 7th moves.} (9... exd4 $1 $11 {keeps the balance.} 10. Nxd4 (10. Bxd4 Re8 $11) 10... Nc5) 10. dxe5 $16 {[%emt 0:06:35]} dxe5 {[%emt 0:00:22] [#]} 11. b4 $146 {[%emt 0:01:19]} ({Predecessor:} 11. Qc2 Bb7 12. Rfd1 Qe8 13. b4 Qe6 14. Nd5 Rfc8 15. c5 Nxd5 16. exd5 Bxd5 17. Rxd5 Qxd5 {1-0 (38) Christ,R (2292)-Cherniaev,A (2506) Hastings 2002}) 11... Bb7 {[%emt 0:08:52] White is slightly better.} 12. Qc2 {[%emt 0:06:34]} c5 {[%emt 0:05:13]} 13. a3 {[%emt 0:11:51]} Qe7 {[%emt 0:03:36]} 14. Rab1 {[%emt 0:02:04]} Rfc8 {[%emt 0:03:29]} 15. Qd3 {[%emt 0:11:55]} Bf8 {[%emt 0:07:15]} 16. Rfc1 {[%emt 0:06:55]} Ne8 {[%emt 0:05:04][%cal Bf6e8,Be8g7,Bg7e6,Be6d4][%mdl 32]} 17. Nd5 {[%emt 0:03:37]} Qd6 {[%emt 0:03:58]} 18. Bd1 {[%emt 0:10:53]} Bc6 {[%emt 0:15:00]} 19. Qd2 {[%emt 0:00:38]} Kh7 {[%emt 0:03:08]} 20. Qb2 {[%emt 0:04:32]} Ng7 {[%emt 0:02:11]} 21. b5 {[%emt 0:04:56]} Bb7 {[%emt 0:00:28]} 22. Nh2 {[%emt 0:01:28] White is much more active.} (22. Qd2 $14) 22... Ne6 {[%emt 0:06:01]} 23. Bg4 {[%emt 0:02:28]} Bg7 {[%emt 0:01:18]} 24. h4 {[%emt 0:01:04]} (24. Bxe6 $14 Qxe6 25. f3) 24... Nd4 $11 {[%emt 0:01:55]} 25. h5 {[%emt 0:00:34]} Rf8 {[%emt 0:01:16]} 26. Qd2 {[%emt 0:03:17]} Nf6 {[%emt 0:01:57]} 27. hxg6+ {[%emt 0:00:41]} fxg6 {[%emt 0:00:09]} 28. f3 {[%emt 0:01:52]} (28. Qd3 $11) 28... Ng8 {[%emt 0:02:05][%cal Bf6g8,Bg8h6,Bh6f7,Bf7e5,Be5c4][%mdl 32]} 29. Rf1 {[%emt 0:01:24]} h5 {[%emt 0:00:42]} 30. Bh3 {[%emt 0:00:01]} Rf7 {[%emt 0:00:40]} (30... Bxd5 $15 31. exd5 Rae8) 31. Rbe1 {[%emt 0:00:34]} Raf8 {[%emt 0:00:19]} 32. Kh1 {[%emt 0:00:52]} (32. Bxd4 $11 exd4 33. f4) 32... Bh6 $15 {[%emt 0:01:00]} 33. Bxh6 {[%emt 0:00:29]} Nxh6 {[%emt 0:00:08]} 34. Qg5 {[%emt 0:01:21][%cal Of3f4]} Rg7 $2 {[%emt 0:03:43] [#]} (34... Kg7 $15 {keeps the upper hand.}) 35. f4 $1 $16 {[%emt 0:01:12][%cal Bf3f4,Bf4e5,Be5e6][%mdl 32]} Nf7 {[%emt 0:07:55]} 36. fxe5 {[%emt 0:00:35]} Qb8 $2 {[%emt 0:00:05] This move loses the game for Black.} (36... Nxg5 $16 37. exd6 Rd8) 37. Qf6 $18 {[%emt 0:00:38] And now e6 would win.} Re8 {[%emt 0:01:42] [#]} 38. e6 {[%emt 0:00:58]} Ne5 {[%emt 0:00:33]} 39. Qg5 {[%emt 0:00:27] Threatening mate with Nf6+.} Bxd5 {[%emt 0:00:27]} 40. exd5 {[%emt 0:00:00]} (40. cxd5 Qc7 41. Rd1 Rh8) 40... Nxc4 {[%emt 0:00:00]} 41. Nf3 {[%emt 0:05:07]} Qd8 $2 {[%emt 0:06:31]} (41... Nxf3 42. Rxf3 Qd8 43. Qxd8 Rxd8) 42. Qxd8 {[%emt 0:08:23] White is clearly winning.} Rxd8 {[%emt 0:00:27]} 43. Ng5+ {[%emt 0:03:13]} Kg8 {[%emt 0:00:19]} 44. Nf7 {[%emt 0:04:21]} Rxf7 {[%emt 0:11:11]} 45. Rxf7 {[%emt 0:01:21]} Nxb5 {[%emt 0:04:16]} 46. e7 {[%emt 0:02:32]} Re8 {[%emt 0:01:36]} 47. Be6 {[%emt 0:00:57] Black must now prevent Rf8+.} Nc7 {[%emt 0:00:53]} 48. Rf8+ {[%emt 0:01:48]} Kg7 {[%emt 0:01:38]} 49. Rxe8 {[%emt 0:00:20]} Nxe8 {[%emt 0:00:05]} 50. Bd7 {[%emt 0:02:43]} Kf7 {[%emt 0:01:04]} 51. Bxe8+ {[%emt 0:00:12]} Kxe8 {[%emt 0:00:05]} 52. Re6 {[%emt 0:00:07]} b5 {[%emt 0:01:30]} 53. d6 {[%emt 0:00:33] Weighted Error Value: White=0.22 (precise) /Black=0.34} 1-0

[Event "Croatian 1B League 2022"]
[Site "Porec"]
[Date "2022.10.02"]
[Round "9.5"]
[White "Bilobrk, Franjo"]
[Black "Zadravec, Matija"]
[Result "1/2-1/2"]
[ECO "E16"]
[WhiteElo "2341"]
[BlackElo "2250"]
[Annotator "TA"]
[PlyCount "67"]
[EventDate "2022.09.24"]
[EventType "team-tourn"]
[EventCountry "CRO"]
[SourceTitle "playchess.com"]
[Source "ChessBase"]
[SourceQuality "1"]
[TimeControl "40/5400+30:1800+30"]

{[%evp 20,67,18,0,14,0,0,0,0,0,0,-3,-2,-4,0,0,0,0,25,24,31,36,22,0,0,-22,-21,-17,-11,-29,0,0,0,-17,-31,-29,-29,-22,-20,-45,-8,-8,0,0,0,-10,0,0,0,-20]} 1. d4 {[%emt 0:00:00]} Nf6 {[%emt 0:00:12]} 2. c4 {[%emt 0:00:13]} e6 {[%emt 0:00:08]} 3. Nf3 {[%emt 0:00:12]} Bb4+ {[%emt 0:00:08]} 4. Bd2 {[%emt 0:00:24]} Qe7 {[%emt 0:00:04]} 5. Nc3 {[%emt 0:01:15]} b6 {[%emt 0:00:06]} 6. g3 {[%emt 0:01:22]} Bb7 {[%emt 0:00:01]} 7. Bg2 {[%emt 0:00:07]} O-O {[%emt 0:00:34]} 8. O-O {[%emt 0:00:18]} Bxc3 {[%emt 0:00:02]} 9. Bxc3 {[%emt 0:00:17]} Ne4 {[%emt 0:00:02]} 10. Rc1 {[%emt 0:00:57]} d6 {[%emt 0:06:36]} 11. d5 {[%emt 0:01:18][%cal Oc3g7]} c5 {[%emt 0:04:25] E16: Queen's Indian: 4 g3 Bb7 5 Bg2 Bb4+.} 12. Qd3 {[%emt 0:10:38] [#]} exd5 $146 {[%emt 0:00:50]} ({Predecessor:} 12... Nxc3 13. Rxc3 e5 14. Nh4 g6 15. e4 Nd7 16. Bh3 Nf6 17. Qe2 a6 18. Re3 b5 {½-½ (47) Quinteros,M (2530)-Ricardi,P (2335) Corrientes 1985}) 13. cxd5 {[%emt 0:00:19]} f5 {[%emt 0:01:56]} 14. Nd2 {[%emt 0:03:35][%cal Rd2e4]} (14. Nh4 {looks sharper.} g6 15. Bxe4 fxe4 16. Qd2) 14... Nxc3 {[%emt 0:17:08]} 15. bxc3 {[%emt 0:01:37]} Nd7 {[%emt 0:06:23]} 16. f4 {[%emt 0:03:31]} Nf6 {[%emt 0:17:14][%cal Ob7a6]} 17. e4 {[%emt 0:03:21]} fxe4 {[%emt 0:06:06]} 18. Nxe4 {[%emt 0:02:42]} Nxe4 {[%emt 0:03:47]} 19. Bxe4 {[%emt 0:00:40]} g6 {[%emt 0:01:40]} 20. Rce1 {[%emt 0:06:48][%cal Oe4g6] [#] Black must now prevent Bxg6!} Qf6 {[%emt 0:06:17]} 21. h4 {[%emt 0:00:26]} (21. f5 $5 {[%cal Rf5g6]}) 21... Bc8 {[%emt 0:01:26] Inhibits f5.} 22. h5 {[%emt 0:00:19][%cal Rh5g6]} Kg7 {[%emt 0:02:47]} 23. hxg6 {[%emt 0:07:00]} (23. Rf2 {is interesting.} Re8 24. Rh2 Bg4 25. hxg6 hxg6 26. Kf2) 23... hxg6 {[%emt 0:00:01]} 24. Re3 {[%emt 0:00:01]} Bh3 {[%emt 0:02:58]} 25. Rfe1 {[%emt 0:01:18]} Rae8 {[%emt 0:00:18]} 26. Bg2 {[%emt 0:06:54]} (26. Bf3 $5 {[%cal Re3e8]} Rxe3 27. Qxe3 $11) 26... Bf5 {[%emt 0:02:21]} 27. Qb5 {[%emt 0:03:10]} Rxe3 {[%emt 0:02:19]} 28. Rxe3 {[%emt 0:01:07]} Rf7 {[%emt 0:01:05]} 29. Qe2 {[%emt 0:01:54]} Bd7 {[%emt 0:00:56]} 30. Bf3 {[%emt 0:00:48] The position is equal.} Bf5 {[%emt 0:03:31]} 31. Kg2 {[%emt 0:01:37]} Bd7 {[%emt 0:00:20]} 32. Kg1 {[%emt 0:08:30]} Bf5 {[%emt 0:00:20]} 33. Kg2 {[%emt 0:04:49]} Bd7 {[%emt 0:01:12]} 34. Kg1 {[%emt 0:04:15] A rather calm draw.  Weighted Error Value: White=0.07 (flawless) /Black=0.06 (flawless)} 1/2-1/2